fUSD/lending_fUSD_20241122
["ID","MTS","AMOUNT","RATE_DAILY","PERIOD"]
[342972576,1732237832921,-150.0,0.00057533,120]
[342972577,1732237832931,-500.0,0.00057534,120]
[342972578,1732237832941,-500.0,0.00057534,120]
[342972579,1732237832950,-540.88,0.00057534,120]
[342972580,1732237832960,-500.0,0.00057534,120]
[342972581,1732237832970,-500.0,0.00057534,120]
[342972582,1732237832979,-500.0,0.00057534,120]
[342972583,1732237832989,-500.0,0.00057534,120]
[342972584,1732237832999,-262.86,0.00057534,120]
[342972585,1732237833008,-500.0,0.00057534,120]
[342972586,1732237833018,-360.49,0.00057534,120]
[342972587,1732237833028,-500.0,0.00057534,120]
[342972588,1732237833038,-500.0,0.00057534,120]
[342972589,1732237833048,-500.0,0.00057534,120]
[342972590,1732237833058,-228.05,0.00057534,120]
[342972591,1732237833067,-500.0,0.00057534,120]
[342972592,1732237833078,-300.84,0.00057534,120]
[342972593,1732237833088,-543.33,0.00057534,120]
[342972594,1732237833098,-500.0,0.00057534,120]
[342972595,1732237833107,-500.0,0.00057534,120]
[342972596,1732237833117,-500.0,0.00057534,120]
[342972597,1732237833127,-554.63,0.00057534,120]
[342972598,1732237833137,-500.0,0.00057534,120]
[342972599,1732237833147,-493.14209042,0.00057534,120]
[342972600,1732237833165,-6.85790958,0.00057534,120]
[342972601,1732237833175,-500.0,0.00057534,120]
[342972602,1732237833184,-489.92435716,0.00057534,120]
[342972617,1732237838025,-500.0,0.0005155,2]
[342972619,1732237838036,-10.07564284,0.00057534,120]
[342972621,1732237838045,-500.0,0.00057534,120]
[342972622,1732237838055,-198.65,0.00057534,120]
[342972623,1732237838064,-500.0,0.00057534,120]
[342972624,1732237838074,-500.0,0.00057534,120]
[342972625,1732237838084,-500.0,0.00057534,120]
[342972626,1732237838093,-500.0,0.00057534,120]
[342972627,1732237838103,-500.0,0.00057534,120]
[342972628,1732237838112,-37.80840667,0.00057534,120]
[342972629,1732237838124,-462.19159333,0.00057534,120]
[342972630,1732237838133,-149.99080906,0.00057534,120]
[342972631,1732237838144,-293.10632078,0.00057534,120]
[342972632,1732237838165,-56.90287016,0.00057534,120]
[342972633,1732237838175,-500.0,0.00057534,120]
[342972634,1732237838185,-500.0,0.00057534,120]
[342972635,1732237838194,-506.02557427,0.00057534,120]
[342972636,1732237838206,-138.22442573,0.00057534,120]
[342972637,1732237838215,-500.0,0.00057534,120]
[342972638,1732237838224,-580.51,0.00057534,120]
[342972639,1732237838234,-500.0,0.00057534,120]
[342972640,1732237838243,-500.0,0.00057534,120]
[342972641,1732237838252,-500.0,0.00057534,120]
[342972642,1732237838261,-295.83,0.00057534,120]
[342972643,1732237838272,-500.0,0.00057534,120]
[342972644,1732237838282,-500.0,0.00057534,120]
[342972645,1732237838291,-500.0,0.00057534,120]
[342972646,1732237838300,-500.0,0.00057534,120]
[342972647,1732237838310,-300.24302952,0.00057534,120]
[342972648,1732237838319,-311.7227343,0.00057534,120]
[342972649,1732237838447,-188.2772657,0.00057534,120]
[342972650,1732237838457,-311.7227343,0.00057534,120]
[342972651,1732237838468,-188.2772657,0.00057534,120]
[342972652,1732237838478,-500.0,0.00057534,120]
[342972653,1732237838487,-500.0,0.00057534,120]
[342972654,1732237838496,-500.0,0.00057534,120]
[342972655,1732237838505,-397.26,0.00057534,120]
[342972656,1732237838515,-500.0,0.00057534,120]
[342972657,1732237838525,-438.84224909,0.00057534,120]
[342972658,1732237838536,-61.15775091,0.00057534,120]
[342972659,1732237838545,-500.0,0.00057534,120]
[342972660,1732237838555,-500.0,0.00057534,120]
[342972661,1732237838564,-500.0,0.00057534,120]
[342972662,1732237838573,-500.0,0.00057534,120]
[342972663,1732237838583,-500.0,0.00057534,120]
[342972664,1732237838594,-500.0,0.00057534,120]
[342972665,1732237838603,-500.0,0.00057534,120]
[342972666,1732237838613,-500.0,0.00057534,120]
[342972667,1732237838622,-589.2,0.00057534,120]
[342972668,1732237838631,-500.0,0.00057534,120]
[342972669,1732237838642,-500.0,0.00057534,120]
[342972671,1732237838651,-500.0,0.00057534,120]
[342972673,1732237838660,-553.44,0.00057534,120]
[342972675,1732237838670,-500.0,0.00057534,120]
[342972677,1732237838679,-500.0,0.00057534,120]
[342972679,1732237838689,-500.0,0.00057534,120]
[342972681,1732237838698,-500.0,0.00057534,120]
[342972683,1732237838708,-500.0,0.00057534,120]
[342972684,1732237838720,-500.0,0.00057534,120]
[342972685,1732237838730,-500.0,0.00057534,120]
[342972686,1732237838742,-500.0,0.00057534,120]
[342972687,1732237838752,-500.0,0.00057534,120]
[342972688,1732237838763,-500.0,0.00057534,120]
[342972689,1732237838774,-500.0,0.00057534,120]
[342972690,1732237838783,-196.0,0.00057534,120]
[342972691,1732237838793,-389.3521192,0.00057534,120]
[342972692,1732237838802,-500.0,0.00057534,120]
[342972693,1732237838813,-500.0,0.00057534,120]
[342972694,1732237838823,-500.0,0.00057534,120]
[342972695,1732237838833,-500.0,0.00057534,120]
[342972696,1732237838843,-1413.78,0.00057534,120]
[342972697,1732237838853,-1413.78,0.00057534,120]
[342972698,1732237838862,-1413.78,0.00057534,120]
[342972699,1732237838874,-1413.78,0.00057534,120]
[342972700,1732237838884,-1413.78,0.00057534,120]
[342972701,1732237838894,-1413.78,0.00057534,120]
[342972702,1732237838904,-500.0,0.00057534,120]
[342972703,1732237838915,-500.0,0.00057534,120]
[342972704,1732237838925,-500.0,0.00057534,120]
[342972705,1732237838935,-500.0,0.00057534,120]
[342972706,1732237838945,-500.0,0.00057534,120]
[342972707,1732237838956,-500.0,0.00057534,120]
[342972708,1732237838966,-408.51,0.00057534,120]
[342972709,1732237838975,-500.0,0.00057534,120]
[342972710,1732237838986,-500.0,0.00057534,120]
[342972711,1732237838995,-500.0,0.00057534,120]
[342972712,1732237839006,-500.0,0.00057534,120]
[342972713,1732237839016,-500.0,0.00057534,120]
[342972714,1732237839027,-500.0,0.00057534,120]
[342972715,1732237839036,-500.0,0.00057534,120]
[342972716,1732237839045,-500.0,0.00057534,120]
[342972717,1732237839055,-173.20461516,0.00057534,120]
[342972718,1732237839067,-128.07538484,0.00057534,120]
[342972719,1732237839076,-500.0,0.00057534,120]
[342972720,1732237839086,-500.0,0.00057534,120]
[342972721,1732237839095,-500.0,0.00057534,120]
[342972722,1732237839105,-297.69,0.00057534,120]
[342972723,1732237839114,-500.0,0.00057534,120]
[342972724,1732237839122,-500.0,0.00057534,120]
[342972725,1732237839131,-359.78,0.00057534,120]
[342972726,1732237839140,-500.0,0.00057534,120]
[342972727,1732237839150,-340.34,0.00057534,120]
[342972728,1732237839159,-500.0,0.00057534,120]
[342972729,1732237839168,-500.0,0.00057534,120]
[342972730,1732237839177,-421.50394518,0.00057534,120]
[342972731,1732237839186,-500.0,0.00057534,120]
[342972732,1732237839196,-500.0,0.00057534,120]
[342972733,1732237839205,-528.81,0.00057534,120]
[342972734,1732237839214,-500.0,0.00057534,120]
[342972735,1732237839223,-500.0,0.00057534,120]
[342972736,1732237839232,-500.0,0.00057534,120]
[342972737,1732237839241,-500.0,0.00057534,120]
[342972738,1732237839250,-261.69131458,0.00057534,120]
[342972739,1732237839260,-500.0,0.00057534,120]
[342972740,1732237839269,-500.0,0.00057534,120]
[342972741,1732237839281,-500.0,0.00057534,120]
[342972742,1732237839291,-500.0,0.00057534,21]
[342972743,1732237839300,-1387.62,0.00057534,120]
[342972744,1732237839310,-500.0,0.00057534,120]
[342972745,1732237839319,-500.0,0.00057534,120]
[342972746,1732237839328,-469.0,0.00057534,120]
[342972747,1732237839338,-449.09681873,0.00057534,120]
[342972748,1732237839348,-500.0,0.00057534,120]
[342972749,1732237839358,-500.0,0.00057534,120]
[342972750,1732237839367,-500.0,0.00057534,120]
[342972751,1732237839377,-403.75937748,0.00057534,120]
[342972752,1732237839388,-96.24062252,0.00057534,120]
[342972753,1732237839396,-500.0,0.00057534,120]
[342972754,1732237839406,-615.77,0.00057534,120]
[342972755,1732237839415,-500.0,0.00057534,120]
[342972756,1732237839423,-500.0,0.00057534,120]
[342972757,1732237839433,-500.0,0.00057534,120]
[342972758,1732237839442,-500.0,0.00057534,120]
[342972759,1732237839451,-500.0,0.00057534,120]
[342972760,1732237839460,-500.0,0.00057534,120]
[342972761,1732237839469,-500.0,0.00057534,120]
[342972762,1732237839479,-1437.09,0.00057534,120]
[342972763,1732237839488,-500.0,0.00057534,120]
[342972764,1732237839497,-515.45945182,0.00057534,120]
[342972765,1732237839506,-500.0,0.00057534,120]
[342972766,1732237839515,-500.0,0.00057534,120]
[342972767,1732237839526,-590.85,0.00057534,120]
[342972768,1732237839535,-500.0,0.00057534,120]
[342972769,1732237839544,-93.15270717,0.00057534,120]
[342972770,1732237839555,-406.84729283,0.00057534,120]
[342972771,1732237839565,-2154.16,0.00057534,120]
[342972772,1732237839575,-500.0,0.00057534,120]
[342972773,1732237839584,-500.0,0.00057534,120]
[342972774,1732237839593,-505.85,0.00057534,120]
[342972775,1732237839603,-500.0,0.00057534,120]
[342972776,1732237839612,-500.0,0.00057534,120]
[342972777,1732237839621,-256.67783839,0.00057534,120]
[342972778,1732237839631,-500.0,0.00057534,120]
[342972779,1732237839641,-155.44,0.00057793,120]
[342972780,1732237839651,-300.0,0.00057807,120]
[342972781,1732237839660,-500.0,0.00057996,31]
[342972782,1732237839669,-500.0,0.00057996,31]
[342972783,1732237839679,-500.0,0.00057996,31]
[342972784,1732237839688,-500.0,0.00057996,31]
[342972785,1732237839697,-607.95013695,0.00057996,31]
[342972786,1732237839706,-500.0,0.00057996,31]
[342972787,1732237839715,-500.0,0.00057996,31]
[342972788,1732237839728,-500.0,0.00057996,31]
[342972790,1732237839737,-500.0,0.00057996,31]
[342972792,1732237839747,-500.0,0.00057996,31]
[342972793,1732237839756,-357.97,0.00057997,120]
[342972794,1732237839766,-500.0,0.00057997,120]
[342972795,1732237839777,-500.0,0.00057997,120]
[342972796,1732237839786,-1413.78,0.00057997,120]
[342972797,1732237839795,-500.0,0.00057997,120]
[342972798,1732237839805,-250.0,0.00058,120]
[342972800,1732237839815,-250.0,0.00058,60]
[342972801,1732237839824,-258.0,0.00058,120]
[342972804,1732237839834,-8080.63095964,0.00058,120]
[342972806,1732237839846,-999.33463317,0.00058,120]
[342972808,1732237839857,-3212.35703934,0.00058,120]
[342972810,1732237839868,-4148.74605797,0.00058,120]
[342972812,1732237839877,-200.0,0.0005805,120]
[342972814,1732237839887,-450.0,0.00058081,120]
[342972816,1732237839895,-55.66932664,0.00058224,120]
[342972818,1732237839907,-944.33067336,0.00058224,120]
[342972819,1732237839916,-461.02,0.00058342,2]
[342972821,1732237839926,-600.0,0.00058355,120]
[342972823,1732237839937,-265.0,0.000584,30]
[342972825,1732237839950,-520.36852023,0.00058431,15]
[342972827,1732237839959,-500.0,0.00058497,120]
[342972828,1732237839968,-500.0,0.00058497,120]
[342972829,1732237839978,-500.0,0.00058497,120]
[342972830,1732237839987,-1413.78,0.00058497,120]
[342972831,1732237839995,-500.0,0.00058497,120]
[342972832,1732237840004,-200.21,0.0005859,120]
[342972833,1732237840013,-976.19944451,0.00058604,30]
[342972834,1732237840024,-750.0,0.00058629,120]
[342972835,1732237840033,-1274.20989118,0.0005875,120]
[342972836,1732237840045,-339.9916622,0.0005875,120]
[342972837,1732237840056,-1120.66502401,0.0005875,120]
[342972838,1732237840067,-452.64,0.0005875,120]
[342972839,1732237840079,-879.14563992,0.0005875,120]
[342972840,1732237840123,-500.69,0.00057534,120]
[342972841,1732237840132,-743.40212786,0.0005875,120]
[342972842,1732237840144,-412.94565483,0.0005875,120]
[342972843,1732237840154,-194.94133703,0.00058757,28]
[342972844,1732237840164,-500.0,0.00058857,120]
[342972845,1732237840174,-500.0,0.00058857,120]
[342972846,1732237840183,-110.68844326,0.00058857,120]
[342972847,1732237840194,-389.31155674,0.00058857,120]
[342972848,1732237840204,-519.39,0.00058857,120]
[342972849,1732237840213,-500.0,0.00058857,120]
[342972850,1732237840223,-500.0,0.00058857,120]
[342972851,1732237840232,-500.0,0.00058857,120]
[342972852,1732237840241,-500.0,0.00058857,120]
[342972853,1732237840250,-500.0,0.00058857,120]
[342972854,1732237840259,-500.0,0.00058857,120]
[342972855,1732237840269,-500.0,0.00058857,120]
[342972856,1732237840280,-500.0,0.00058857,120]
[342972857,1732237840290,-414.58912478,0.00058857,120]
[342972858,1732237840301,-200.0,0.00058857,7]
[342972859,1732237840311,-500.0,0.00058857,120]
[342972860,1732237840321,-500.0,0.00058857,120]
[342972861,1732237840333,-500.0,0.00058857,120]
[342972862,1732237840343,-500.0,0.00058857,120]
[342972863,1732237840353,-500.0,0.00058857,120]
[342972864,1732237840363,-500.0,0.00058857,120]
[342972865,1732237840372,-336.26169982,0.00058857,120]
[342972866,1732237840382,-479.27258891,0.00058857,120]
[342972867,1732237840393,-20.72741109,0.00058857,120]
[342972868,1732237840403,-500.0,0.00058857,120]
[342972869,1732237840414,-500.0,0.00058857,120]
[342972870,1732237840424,-500.0,0.00058857,120]
[342972871,1732237840434,-500.0,0.00058857,120]
[342972872,1732237840444,-500.0,0.00058857,120]
[342972873,1732237840453,-500.0,0.00058857,120]
[342972874,1732237840462,-256.89390629,0.00058857,120]
[342972875,1732237840474,-243.10609371,0.00058857,120]
[342972876,1732237840483,-500.0,0.00058857,120]
[342972877,1732237840492,-500.0,0.00058857,120]
[342972878,1732237840501,-233.89,0.00058857,120]
[342972879,1732237840510,-482.01314492,0.00058857,120]
[342972880,1732237840521,-17.98685508,0.00058857,120]
[342972881,1732237840539,-319.38714492,0.00058857,120]
[342972882,1732237840554,-180.61285508,0.00058857,120]
[342972883,1732237840563,-74.13714492,0.00058857,120]
[342972884,1732237840579,-500.0,0.00051939,2]
[342972885,1732237840588,-459.03465564,0.00058857,120]
[342972886,1732237840598,-500.0,0.00058857,120]
[342972887,1732237840607,-500.0,0.00058857,120]
[342972888,1732237840617,-152.445402,0.00058857,120]
[342972889,1732237840626,-227.7918578,0.00058857,120]
[342972890,1732237840635,-500.0,0.00058857,120]
[342972891,1732237840645,-500.0,0.00058857,120]
[342972892,1732237840655,-176.57927759,0.00058857,120]
[342972893,1732237840664,-798.24,0.00058857,120]
[342972894,1732237840674,-179.89784549,0.00058857,120]
[342972895,1732237840683,-500.0,0.00058857,120]
[342972896,1732237840692,-495.12896148,0.00058857,120]
[342972897,1732237840704,-4.87103852,0.00058857,120]
[342972898,1732237840713,-500.0,0.00058857,120]
[342972899,1732237840722,-500.0,0.00058857,120]
[342972900,1732237840734,-79.26896148,0.00058857,120]
[342972901,1732237840745,-420.73103852,0.00058857,120]
[342972902,1732237840754,-500.0,0.00058857,120]
[342972903,1732237840763,-354.44776404,0.00058857,120]
[342972904,1732237840776,-145.55223596,0.00058857,120]
[342972905,1732237840786,-500.0,0.00058857,120]
[342972906,1732237840795,-500.0,0.00058857,120]
[342972907,1732237840805,-500.0,0.00058857,120]
[342972908,1732237840816,-500.0,0.00058857,120]
[342972909,1732237840826,-500.0,0.00058857,120]
[342972910,1732237840836,-500.0,0.00058857,120]
[342972911,1732237840845,-500.0,0.00058857,120]
[342972912,1732237840855,-500.0,0.00058857,120]
[342972913,1732237840865,-500.0,0.00058857,120]
[342972914,1732237840875,-500.0,0.00058857,120]
[342972915,1732237840885,-370.34874715,0.00058857,120]
[342972916,1732237840898,-129.65125285,0.00058857,120]
[342972917,1732237840907,-140.87433615,0.00058857,7]
[342972918,1732237840920,-359.12566385,0.00058857,7]
[342972919,1732237840930,-500.0,0.00058857,120]
[342972920,1732237840940,-500.0,0.00058857,120]
[342972921,1732237840950,-500.0,0.00058857,120]
[342972922,1732237840959,-500.0,0.00058857,120]
[342972923,1732237840969,-500.0,0.00058857,120]
[342972924,1732237840979,-326.52735759,0.00058857,120]
[342972925,1732237840991,-173.47264241,0.00058857,120]
[342972926,1732237841000,-429.32471539,0.00058857,120]
[342972927,1732237841012,-70.67528461,0.00058857,120]
[342972928,1732237841022,-500.0,0.00058857,120]
[342972929,1732237841035,-500.0,0.00058857,120]
[342972930,1732237841044,-307.63861366,0.00058857,120]
[342972931,1732237841056,-192.36138634,0.00058857,120]
[342972932,1732237841065,-500.0,0.00058857,120]
[342972933,1732237841075,-500.0,0.00058857,120]
[342972934,1732237841085,-259.89339731,0.00058857,120]
[342972935,1732237841095,-500.0,0.00058857,120]
[342972936,1732237841104,-500.0,0.00058857,120]
[342972937,1732237841113,-500.0,0.00058857,120]
[342972938,1732237841123,-500.0,0.00058857,120]
[342972939,1732237841132,-500.0,0.00058857,120]
[342972940,1732237841142,-500.0,0.00058857,120]
[342972941,1732237841151,-500.0,0.00058857,120]
[342972942,1732237841160,-500.0,0.00058857,120]
[342972943,1732237841171,-500.0,0.00058857,120]
[342972944,1732237841182,-500.0,0.00058857,120]
[342972945,1732237841192,-1535.39350305,0.00058899,120]
[342972950,1732237843044,-352.3222884,0.00054,120]
[342972952,1732237843056,-147.6777116,0.00054,120]
[342972954,1732237843065,-305.46,0.00057534,120]
[342972955,1732237843074,-181.67838687,0.00058899,120]
[342972957,1732237843087,-782.92811008,0.00058899,120]
[342972959,1732237843097,-418.71985167,0.00058899,120]
[342972961,1732237843110,-1866.30484048,0.00058899,120]
[342972963,1732237843122,-1711.72262796,0.00058899,120]
[342972966,1732237843133,-4431.71894233,0.00058899,120]
[342972967,1732237843145,-4337.3670121,0.00058899,120]
[342972968,1732237843156,-573.68642546,0.00058899,120]
[342972969,1732237843165,-237.81103206,0.000589,30]
[342972970,1732237843175,-900.0,0.00058903,120]
[342972971,1732237843185,-500.0,0.00058949,120]
[342972972,1732237843195,-545.39,0.00058949,120]
[342972973,1732237843204,-500.0,0.00058949,120]
[342972974,1732237843214,-262.77087522,0.00058949,2]
[342972975,1732237843223,-500.0,0.00058949,120]
[342972976,1732237843233,-1988.98806728,0.0005895,120]
[342972977,1732237843244,-2653.11797358,0.0005895,120]
[342972978,1732237843255,-357.89395914,0.0005895,120]
[342972979,1732237843264,-500.0,0.00058996,120]
[342972980,1732237843275,-500.0,0.00058996,120]
[342972981,1732237843284,-500.0,0.00058999,120]
[342972982,1732237843398,-1413.78,0.00058999,120]
[342972983,1732237843409,-146.5905732,0.00058999,120]
[342972984,1732237843421,-274.8994268,0.00058999,120]
[342972985,1732237843431,-500.0,0.00058999,120]
[342972986,1732237843440,-1865.08244766,0.00059,120]
[342972987,1732237843452,-13144.20868584,0.00059,120]
[342972988,1732237843462,-7943.49879213,0.00059,120]
[342972989,1732237843474,-947.300632,0.00059,120]
[342972990,1732237843485,-1901.8855562,0.00059,120]
[342972991,1732237843501,-411.7493109,0.00059,120]
[342972992,1732237843513,-718.564,0.00059,120]
[342972993,1732237843525,-1872.08172289,0.00059,120]
[342972994,1732237843538,-1200.31549381,0.00059,120]
[342972995,1732237843549,-19995.31335857,0.00059,120]
[342972997,1732237843559,-5000.0,0.00059,120]
[342972999,1732237843568,-5000.0,0.0005915,120]
[342973001,1732237843577,-1050.0,0.00059177,120]
[342973003,1732237843586,-1000.0,0.00059199,30]
[342973005,1732237843595,-996.7252,0.00059199,30]
[342973007,1732237843604,-500.0,0.00059199,120]
[342973009,1732237843614,-197.88,0.00059199,120]
[342973011,1732237843623,-500.0,0.00059199,120]
[342973013,1732237843633,-500.0,0.00059199,120]
[342973014,1732237843643,-500.0,0.00059199,21]
[342973015,1732237843652,-500.0,0.00059199,120]
[342973016,1732237843662,-500.0,0.00059199,120]
[342973017,1732237843671,-500.0,0.00059199,120]
[342973018,1732237843681,-500.0,0.00059199,120]
[342973019,1732237843692,-353.45,0.00059199,120]
[342973020,1732237843703,-212.54,0.00059199,120]
[342973022,1732237843713,-1437.09,0.00059199,120]
[342973024,1732237843733,-2154.16,0.00059199,120]
[342973025,1732237843753,-50000.0,0.000592,120]
[342973026,1732237843775,-185.91,0.0005945,120]
[342973027,1732237843802,-433.34,0.0005945,120]
[342973028,1732237843824,-500.0,0.0005945,120]
[342973029,1732237843844,-500.0,0.0005945,120]
[342973030,1732237843864,-500.0,0.0005945,120]
[342973031,1732237843886,-1200.0,0.00059451,120]
[342973032,1732237843907,-150.0,0.00059564,14]
[342973033,1732237843928,-20366.68144143,0.000596,120]
[342973034,1732237844014,-9587.65877247,0.000596,120]
[342973035,1732237844036,-500.0,0.000596,21]
[342973036,1732237844057,-166.50451807,0.000596,120]
[342973037,1732237844078,-166.50451805,0.000596,120]
[342973038,1732237844099,-166.50451805,0.000596,120]
[342973039,1732237844120,-500.0,0.00059699,120]
[342973040,1732237844141,-500.0,0.00059699,120]
[342973041,1732237844161,-1413.78,0.00059699,120]
[342973042,1732237844182,-500.0,0.00059699,120]
[342973043,1732237844202,-154.699,0.000597,120]
[342973044,1732237844223,-1100.0,0.000597,21]
[342973045,1732237844244,-161.73274864,0.00059725,120]
[342973046,1732237844265,-744.04,0.00059764,120]
[342973047,1732237844295,-500.0,0.00059773,120]
[342973048,1732237844316,-500.0,0.00059773,120]
[342973049,1732237844337,-150.76,0.0005979,120]
[342973050,1732237844358,-150.76,0.0005979,120]
[342973051,1732237844378,-305.2,0.00059797,120]
[342973052,1732237844399,-569.87,0.00059797,120]
[342973053,1732237844420,-500.0,0.00059797,120]
[342973054,1732237844440,-500.0,0.00059797,120]
[342973055,1732237844461,-1387.62,0.00059797,120]
[342973056,1732237844481,-500.0,0.00059797,120]
[342973057,1732237844500,-468.37,0.00059797,120]
[342973058,1732237844520,-161.19616659,0.00059799,120]
[342973059,1732237844545,-500.0,0.00059799,120]
[342973060,1732237844566,-357.57,0.00059799,120]
[342973061,1732237844587,-266.25,0.00059799,120]
[342973062,1732237844607,-500.0,0.00059799,120]
[342973063,1732237844628,-500.0,0.00059799,120]
[342973064,1732237844648,-500.0,0.00059799,120]
[342973065,1732237844670,-241.37784977,0.00059799,120]
[342973066,1732237844692,-261.75,0.00059799,120]
[342973067,1732237844713,-212.34,0.00059799,120]
[342973068,1732237844734,-798.24,0.00059799,120]
[342973069,1732237844754,-1413.78,0.00059799,120]
[342973070,1732237844777,-1413.78,0.00059799,120]
[342973071,1732237844797,-500.0,0.00059799,120]
[342973072,1732237844817,-500.0,0.00059799,120]
[342973073,1732237844838,-500.0,0.00059799,120]
[342973074,1732237844860,-500.0,0.00059799,120]
[342973075,1732237844881,-500.0,0.00059799,120]
[342973076,1732237844903,-519.42,0.00059799,120]
[342973077,1732237844923,-500.0,0.00059799,120]
[342973078,1732237844944,-606.4,0.00059799,120]
[342973079,1732237844965,-500.0,0.00059799,120]
[342973080,1732237844976,-500.0,0.00059799,120]
[342973081,1732237844986,-500.0,0.00059799,120]
[342973082,1732237844995,-500.0,0.00059799,120]
[342973083,1732237845004,-500.0,0.00059799,120]
[342973084,1732237845012,-451.28,0.00059799,120]
[342973085,1732237845021,-500.0,0.00059799,120]
[342973086,1732237845032,-500.0,0.00059799,120]
[342973087,1732237845041,-355.6673574,0.00059799,120]
[342973088,1732237845053,-144.3326426,0.00059799,120]
[342973089,1732237845062,-500.0,0.00059799,120]
[342973090,1732237845071,-500.0,0.00059799,120]
[342973091,1732237845080,-482.89,0.00059799,120]
[342973092,1732237845089,-500.0,0.00059799,120]
[342973093,1732237845098,-500.0,0.00059799,120]
[342973094,1732237845107,-220.77845,0.00059799,120]
[342973095,1732237845134,-279.22155,0.00059799,120]
[342973096,1732237845143,-500.0,0.00059799,21]
[342973097,1732237845152,-500.0,0.00059799,120]
[342973098,1732237845161,-500.0,0.00059799,120]
[342973099,1732237845170,-542.74,0.00059799,120]
[342973100,1732237845180,-500.0,0.00059799,120]
[342973101,1732237845188,-547.00910298,0.00059799,120]
[342973102,1732237845197,-500.0,0.00059799,120]
[342973103,1732237845206,-500.0,0.00059799,120]
[342973104,1732237845215,-1437.09,0.00059799,120]
[342973105,1732237845224,-500.0,0.00059799,120]
[342973106,1732237845233,-500.0,0.00059799,120]
[342973107,1732237845242,-360.65,0.00059799,120]
[342973108,1732237845250,-317.27540647,0.00059799,120]
[342973109,1732237845261,-1323.34911343,0.00059799,120]
[342973110,1732237845271,-384.22449193,0.00059799,120]
[342973111,1732237845283,-129.31098817,0.00059799,120]
[342973112,1732237845292,-218.08387791,0.00059799,120]
[342973113,1732237845301,-500.0,0.00059799,120]
[342973114,1732237845309,-500.0,0.00059799,120]
[342973115,1732237845318,-500.0,0.00059799,120]
[342973116,1732237845327,-503.84,0.00059799,120]
[342973117,1732237845335,-347.07942191,0.00059799,120]
[342973118,1732237845347,-152.92057809,0.00059799,120]
[342973119,1732237845355,-582.97542191,0.000598,120]
[342973120,1732237845366,-445.70504057,0.000598,120]
[342973121,1732237845377,-404.3835385,0.000598,120]
[342973122,1732237845388,-1605.35180376,0.000598,120]
[342973123,1732237845398,-13412.2000997,0.000598,120]
[342973124,1732237845409,-6372.55022499,0.000598,120]
[342973125,1732237845420,-7069.46384018,0.000598,120]
[342973126,1732237845430,-9442.64931084,0.000598,120]
[342973127,1732237845441,-2734.07919131,0.000598,120]
[342973128,1732237845463,-500.0,0.00054624,15]
[342973129,1732237845472,-500.0,0.00058857,120]
[342973130,1732237845480,-112.32159237,0.00058903,2]
[342973131,1732237845491,-369.04840763,0.00058903,2]
[342973142,1732237846088,-827.24695293,0.00058903,2]
[342973143,1732237846153,-500.0,0.00056,120]
[342973144,1732237846163,-947.96289974,0.00058903,2]
[342973145,1732237846174,-11260.66012978,0.00058903,2]
[342973146,1732237846187,-11772.95709027,0.00058903,2]
[342973147,1732237846219,-1265.05,0.00058903,2]